Cogmind - Beta 11.1 @@@ ROGUE MODE // 2022.10.08 @ 21:59:04 Player: Mombamambo Result: Destroyed by Executioner with Helical Railgun Performance ------------- Evolutions (6) 3000 Regions Visited (15) 3000 Robots Destroyed (97) 485 Value Destroyed (3603) 3603 Prototype IDs (16) 320 Alien Tech Used (0) 0 Bonus (2532) 2532 TOTAL SCORE: 12940 Bonus ------- High Alert Combat Kills 355 Follower Combat Kills 292 Entered DSFs 500 Met Warlord at Base 500 MAIN.C Attacked Warlord 500 Warlord Defense Kills 428 Friendly Fire -43 Cogmind --------- Core Integrity 0/1150 Matter 156/300 Energy 302/310 System Corruption 0% Temperature Cool (8) Movement Treading (162) Location -4/Warlord Parts ------- > --- POWER (2) -------- Reinforced Fission Core > --- PROPULSION (4) --- Spiked Medium Treads Spiked Medium Treads Spiked Medium Treads Armored Medium Treads > --- UTILITY (9) ------ Advanced Heat Sink Advanced Heat Sink Advanced Signal Interpreter Makeshift Terrain Scan Processor Advanced Melee Analysis Suite Experimental Utility Shielding Hardened Heavy Armor Plating > --- WEAPON (4) ------- Advanced Plasma Cannon Mass Driver Heavy Autocannon > --- INVENTORY (5) ---- Matter Compressor (250) Experimental Utility Shielding Mass Driver RU-N14's Throwing Claymores v3 (10) Vortex Lance (40) Peak State ------------ > --- POWER ------------ Light Nuclear Core Reinforced Fission Core > --- PROPULSION ------- Spiked Medium Treads Spiked Medium Treads Spiked Medium Treads Enhanced Biometal Leg > --- UTILITY ---------- Advanced Heat Sink Advanced Heat Sink Advanced Signal Interpreter Makeshift Terrain Scan Processor Advanced Melee Analysis Suite Experimental Utility Shielding Hardened Heavy Armor Plating > --- WEAPON ----------- Advanced Plasma Cannon Mass Driver Heavy Autocannon > --- INVENTORY -------- Matter Compressor Experimental Utility Shielding Mass Driver RU-N14's Throwing Claymores v3 Vortex Lance [Rating: 102] Favorites ----------- Power Enhanced Nuclear Core Engine Cooled Ion Engine Power Core Enhanced Nuclear Core Propulsion Medium Treads Treads Medium Treads Leg Improved Carbon-fiber Leg Wheel Armored Huge Wheel Flight Unit VTOL Module Utility Large Storage Unit Device Improved Heat Sink Storage Large Storage Unit Processor Advanced Targeting Computer Protection Medium Reactive Plating Weapon Improved Heavy Machine Gun Energy Gun Beamcaster Energy Cannon Advanced Plasma Cannon Ballistic Gun Improved Heavy Machine Gun Ballistic Cannon Heavy Gauss Cannon Launcher Grenade Launcher Special Weapon RU-N14's Throwing Claymores v3 Impact Weapon Power Maul Piercing Weapon Vortex Lance Special Melee Weapon Improved Datajack Build | -11 -10 -9 -8 -7 -7 -7 -7 -6 -5 -5 -5 -4 -4 -4 -4 ------- Run | Scr Mat Mat Mat Fac Was Fac DSF Fac Fac Upp Upp Fac Upp Upp War Slots Evolved 12 | . . 2 2 2 . . . 2 2 . . 2 . . . Power 1 | . . . . . . . . . 1 . . . . . . Propulsion 2 | . . . 1 1 . . . . . . . . . . . Utility 7 | . . 2 1 . . . . 1 1 . . 2 . . . Weapon 2 | . . . . 1 . . . 1 . . . . . . . Parts Attached 161 | 6 2 20 12 10 6 . 4 6 19 1 1 24 20 5 25 Power 18 | 1 . 2 . . . . 2 . 1 . 1 1 6 . 4 Engine 5 | 1 . 2 . . . . 1 . . . . . 1 . . Core 13 | . . . . . . . 1 . 1 . 1 1 5 . 4 Reactor . | . . . . . . . . . . . . . . . . Propulsion 30 | 2 . 5 1 4 . . 2 . . . . 1 7 . 8 Treads 9 | . . . . . . . 2 . . . . . 2 . 5 Leg 7 | . . 1 1 2 . . . . . . . . . . 3 Wheel 10 | 2 . 3 . 2 . . . . . . . 1 2 . . Hover . | . . . . . . . . . . . . . . . . Flight 4 | . . 1 . . . . . . . . . . 3 . . Utility 47 | 1 2 7 1 3 3 . . 2 5 . . 13 3 2 5 Device 13 | . . 2 . . . . . 1 3 . . 4 1 . 2 Storage 15 | 1 . . 1 3 . . . 1 . . . 8 1 . . Processor 9 | . 1 5 . . . . . . . . . . 1 2 . Hackware . | . . . . . . . . . . . . . . . . Protection 10 | . 1 . . . 3 . . . 2 . . 1 . . 3 Artifact . | . . . . . . . . . . . . . . . . Weapon 66 | 2 . 6 10 3 3 . . 4 13 1 . 9 4 3 8 Energy Gun 11 | 1 . . 2 1 . . . 1 . . . 3 3 . . Energy Cannon 4 | . . . . . . . . . 3 . . . . . 1 Ballistic Gun 24 | 1 . 5 3 1 3 . . 1 4 1 . . 1 3 1 Ballistic Cannon 8 | . . . . . . . . . . . . 5 . . 3 Launcher 2 | . . . 2 . . . . . . . . . . . . Special Weapon 1 | . . . . . . . . . . . . . . . 1 Impact Weapon 12 | . . 1 3 1 . . . 1 5 . . 1 . . . Slashing Weapon . | . . . . . . . . . . . . . . . . Piercing Weapon 2 | . . . . . . . . . . . . . . . 2 Special Melee Weapon 2 | . . . . . . . . 1 1 . . . . . . Unidentified Prototypes 12 | . . 3 1 . . . 1 . 2 . . . . . 5 Corrupted Parts 2 | . . . . . . . . . . . . . 2 . . System Corruption 7 | . . . . . . . . . . . . . 7 . . Parts Lost 37 | . . 3 4 . . . . . . . . 16 8 5 1 Power 7 | . . 1 . . . . . . . . . 2 3 . 1 Propulsion 11 | . . 1 1 . . . . . . . . 2 4 3 . Utility 8 | . . 1 . . . . . . . . . 7 . . . Weapon 11 | . . . 3 . . . . . . . . 5 1 2 . Highest Loss Streak 13 | . . 2 2 . . . . . . . . 13 8 3 1 To Critical Strikes . | . . . . . . . . . . . . . . . . Average Slot Usage (%) 70 | . 94 96 84 90 78 69 69 72 79 88 87 78 30 29 38 Engine 2 | . 14 9 9 7 7 7 5 . . . . . . . . Core 5 | . . . . . . . 1 6 11 11 10 8 7 . 4 Treads 5 | . . . . . . . 7 13 11 11 11 2 6 . 3 Leg 1 | . . 1 1 7 7 7 3 . . . . . . . 1 Wheel 7 | . 28 20 11 13 15 15 11 6 5 5 5 7 . . . Device 6 | . . 3 . . . . . 3 10 17 17 18 . . 1 Storage 7 | . 14 11 18 15 8 7 7 8 5 5 5 12 3 . . Processor 7 | . 1 29 27 23 8 . . . . . . . . 13 15 Protection 4 | . 7 . . . 6 7 7 6 8 11 11 6 . . 3 Energy Gun 3 | . 14 . 7 14 1 . . 6 1 . . . 7 . . Ballistic Gun 10 | . 14 21 5 5 20 23 23 17 15 22 23 . . 8 . Ballistic Cannon 2 | . . . . . . . . . . . . 18 . . 3 Naked Turns 41 | . . . . . . . . . . . . 41 . . . Heaviest Build 138 | 11 12 19 20 38 85 85 85 95 124 97 97 138 36 16 102 Greatest Support 111 | 32 32 32 26 44 44 44 44 28 28 28 28 56 56 16 111 Greatest Overweight (x) 4 | . . 3 1 1 1 1 3 3 4 3 3 4 4 . 3 Average Overweight (x) 1 | . . . . . . 1 1 3 3 3 3 2 . . . Largest Inventory Capacity 15 | 8 8 8 8 15 15 15 15 15 15 15 15 15 5 5 5 Average Capacity 11 | 6 8 8 8 14 15 15 15 15 15 15 15 14 5 5 5 Most Carried 15 | 1 1 8 7 14 15 14 14 15 15 15 15 15 4 5 5 Average Carried 9 | . 1 6 5 9 13 14 12 10 13 14 15 12 1 4 4 Final Capacity 15 | 8 8 8 8 15 15 15 15 15 15 15 15 5 5 5 5 Final Carried 15 | 1 1 8 4 14 14 14 10 15 15 15 15 5 4 5 5 Class Distribution -------------------- 37% | Tank 33% | Mutant 8% | Derelict-Tank 7% | Gunner 5% | Scavenger-Mutant 5% | Derelict-Mutant Dominant Class ---------------- Mutant | -10/Materials Mutant | -9/Materials Mutant | -8/Materials Gunner | -7/Factory Tank | -7/Waste Tank | -7/Factory Tank | -7/DSF Derelict-Tank | -6/Factory Tank | -5/Factory Tank | -5/Upper Caves Tank | -5/Upper Caves Tank | -4/Factory Scavenger-Mutant | -4/Upper Caves Derelict-Mutant | -4/Upper Caves Mutant | -4/Warlord Resources | -11 -10 -9 -8 -7 -7 -7 -7 -6 -5 -5 -5 -4 -4 -4 -4 ----------- Run | Scr Mat Mat Mat Fac Was Fac DSF Fac Fac Upp Upp Fac Upp Upp War Matter Collected 3930 | 157 16 511 214 136 105 . . 348 771 156 27 579 348 80 482 Remotely . | . . . . . . . . . . . . . . . . Salvage Created 4473 | . 61 603 353 144 527 . . 636 1033 . . 756 250 . 110 Parts 185 | . 11 30 19 17 4 . . 27 34 . . 24 16 . 3 Haulers Intercepted 7 | . . 3 . . . . . . 4 . . . . . . Recyclers Shooed 1 | . . . . . . . . 1 . . . . . . . Parts Field Recycled . | . . . . . . . . . . . . . . . . Retrieved Matter . | . . . . . . . . . . . . . . . . Parts Self-Destructed 9 | . . . . . . . . . . . . . 9 . . Prevented 9 | . . . . . . . . . . 3 . . 6 . . Kills | -11 -10 -9 -8 -7 -7 -7 -7 -6 -5 -5 -5 -4 -4 -4 -4 ------- Run | Scr Mat Mat Mat Fac Was Fac DSF Fac Fac Upp Upp Fac Upp Upp War Combat Hostiles Destroyed 75 | . 3 10 11 4 2 . . 6 9 . . 22 5 . 3 Melee 6 | . . 2 1 . . . . . . . . 3 . . . Guns 41 | . 3 6 5 4 2 . . 6 8 . . 2 5 . . Cannons 20 | . . . . . . . . . 1 . . 16 . . 3 AOE 5 | . . . 4 . . . . . . . . 1 . . . Classes Destroyed 14 | . 2 4 . 2 1 . . 2 1 . . . 1 . 1 Worker 3 | . . . . 2 . . . . 1 . . . . . . Builder 5 | . . 1 1 . . . . 2 1 . . . . . . Hauler 7 | . . 3 . . . . . . 4 . . . . . . Recycler 4 | . . . . . . . . 2 2 . . . . . . Watcher 3 | . 1 1 1 . . . . . . . . . . . . Swarmer 29 | . 3 . 4 3 . . . . 4 . . 9 5 . 1 Grunt 30 | . . 9 6 . . . . 2 4 . . 8 . . 1 Brawler 2 | . . . . . . . . . 1 . . 1 . . . Sentry 6 | . . 1 1 . . . . 2 . . . 2 . . . Hunter 1 | . . . . . . . . 1 . . . . . . . Programmer 4 | . . . . 1 . . . 1 . . . 2 . . . Compactor 2 | . . . . . 2 . . . . . . . . . . Executioner 1 | . . . . . . . . . . . . . . . 1 Decomposer 1 | . . . . . . . . . . . . . 1 . . Samaritan 2 | . . . . . . . . . . . . . 2 . . Best Kill Streak 7 | . 2 4 6 3 1 . . 2 7 . . 5 5 . 2 Combat Bots Only 6 | . 2 4 6 3 1 . . 2 6 . . 5 5 . 2 Max Kills in Single Turn 3 | . 1 1 3 1 1 . . 1 3 . . 1 1 . 1 Gunslinging . | . . . . . . . . . . . . . . . . Exploded 2 | . . . 2 . . . . . . . . 1 . . . Melee 1 | . . 1 1 . . . . . . . . 1 . . . Uniques/NPCs Destroyed . | . . . . . . . . . . . . . . . . Combat | -11 -10 -9 -8 -7 -7 -7 -7 -6 -5 -5 -5 -4 -4 -4 -4 -------- Run | Scr Mat Mat Mat Fac Was Fac DSF Fac Fac Upp Upp Fac Upp Upp War Damage Taken 8330 | . 67 382 470 93 . . 79 997 377 . . 3411 492 547 1415 Core 1404 | . 9 81 108 . . . . 51 . . . 516 87 385 167 Absorbed by Shields 19 | . . . . . . . . . . . . . . 19 . Redirected to Shielding 38 | . . . . . . . . . . . . . . . 38 Core Remaining (%) 92 | 100 96 79 80 . . . 100 94 . . 100 . . . . Volleys Fired 196 | . 13 29 15 9 7 . 2 23 20 . . 38 24 . 16 Largest 4 | . 2 2 2 3 3 . 3 4 4 . . 4 2 . 3 Hottest 245 | . 60 46 101 124 99 . 99 174 135 . . 244 135 . 245 Shots Fired 513 | . 23 58 27 26 21 . 6 82 72 . . 142 32 . 24 Gun 330 | . 23 58 18 26 21 . 6 82 58 . . 6 32 . . Cannon 174 | . . . . . . . . . 14 . . 136 . . 24 Launcher 9 | . . . 9 . . . . . . . . . . . . Special . | . . . . . . . . . . . . . . . . Kinetic 391 | . 13 58 8 9 21 . 6 62 58 . . 136 . . 20 Thermal 89 | . 10 . 9 9 . . . 20 14 . . 4 19 . 4 Explosive 9 | . . . 9 . . . . . . . . . . . . Electromagnetic 24 | . . . 1 8 . . . . . . . 2 13 . . Robot Hit Streak 32 | . 4 22 25 32 7 . 2 10 8 . . 6 7 . 7 Robot Miss Streak 7 | . 6 3 . 3 2 . 1 4 5 . . 6 3 . 7 Penetration Max . | . . . . . . . . . . . . . . . . Secondary Targets 4 | . . . 1 . 1 . . 1 1 . . . . . . Max Gunslinging Chain 1 | . . . 1 . 1 . . 1 1 . . . . . . Shots Hit Robots 325 | . 10 56 25 15 16 . 3 54 47 . . 68 19 . 12 Core Hits 162 | . 6 21 21 14 3 . 2 22 25 . . 33 10 . 5 Critical Kills 4 | . . . . . . . . . 2 . . 2 . . . Critical Parts Destroyed 5 | . . 1 2 . . . . . 1 . . 1 . . . Critical Strikes 20 | . . 1 2 1 1 . . 1 3 . . 10 . . 1 Burn 2 | . . . . 1 . . . 1 . . . . . . . Destroy 2 | . . . . . 1 . . . 1 . . . . . . Blast 8 | . . . . . . . . . . . . 7 . . 1 Smash 8 | . . 1 2 . . . . . 2 . . 3 . . . Melee Attacks 55 | . . 10 10 2 . . . 7 11 . . 15 . . . Impact 53 | . . 10 10 2 . . . 7 9 . . 15 . . . Slashing . | . . . . . . . . . . . . . . . . Piercing . | . . . . . . . . . . . . . . . . Sneak Attacks 12 | . . . . . . . . 2 10 . . . . . . Combat Hostiles . | . . . . . . . . . . . . . . . . Follow-up Attacks . | . . . . . . . . . . . . . . . . Damage Inflicted 10540 | . 126 1090 917 331 367 . 101 1324 1834 . . 3298 420 . 732 Guns 4300 | . 126 722 249 331 367 . 101 1003 892 . . 89 420 . . Cannons 3095 | . . . . . . . . . 195 . . 2168 . . 732 Explosions 981 | . . . 482 . . . . . . . . 499 . . . Melee 2155 | . . 368 186 . . . . 321 747 . . 533 . . . Ramming 9 | . . . . . . . . . . . . 9 . . . Kinetic 6037 | . 73 722 97 124 367 . 101 794 892 . . 2168 . . 699 Thermal 1191 | . 53 . 152 122 . . . 209 195 . . 239 188 . 33 Explosive 784 | . . . 482 . . . . . . . . 302 . . . Electromagnetic 364 | . . . . 85 . . . . . . . 47 232 . . Impact 2155 | . . 368 186 . . . . 321 747 . . 533 . . . Slashing . | . . . . . . . . . . . . . . . . Piercing . | . . . . . . . . . . . . . . . . Highest Corruption 9 | . 1 . . . . . . . . . . 2 9 9 9 Average Corruption 6 | . 1 . . . . . . . . . . 2 7 9 9 Corruption Purged . | . . . . . . . . . . . . . . . . Corruption Blocked . | . . . . . . . . . . . . . . . . Effects 24 | . . . . . . . . . . . . 1 13 9 1 Message Errors 5 | . . . . . . . . . . . . . 5 . . Matter Fused 8 | . . . . . . . . . . . . 1 3 4 . Heat Flow Errors 1 | . . . . . . . . . . . . . 1 . . Energy Discharges 5 | . . . . . . . . . . . . . 1 4 . Data Loss (minor) 2 | . . . . . . . . . . . . . 1 1 . Misfires 1 | . . . . . . . . . . . . . 1 . . Alerts 2 | . . . . . . . . . . . . . 1 . 1 Overload Shots . | . . . . . . . . . . . . . . . . Overflow Damage 603 | . . 94 106 . . . . 34 164 . . 164 . . 41 Projectiles 89 | . . . . . . . . . . . . 48 . . 41 Explosions 23 | . . . . . . . . . . . . 23 . . . Melee 491 | . . 94 106 . . . . 34 164 . . 93 . . . Knockbacks 20 | . . . 1 . . . . . 1 . . 13 . . 5 Impact 3 | . . . 1 . . . . . 1 . . 1 . . . Kinetic 17 | . . . . . . . . . . . . 12 . . 5 Secondary . | . . . . . . . . . . . . . . . . Self-Inflicted Damage 244 | . . . 27 . . . . . . . . 217 . . . Shots 4 | . . . 1 . . . . . . . . 3 . . . Rammed 1 | . . . . . . . . . . . . 1 . . . Targets Rammed 1 | . . . . . . . . . . . . 1 . . . Kicked . | . . . . . . . . . . . . . . . . Crushed . | . . . . . . . . . . . . . . . . Highest Temperature 418 | . . 11 36 90 172 . . 350 293 . . 418 226 15 399 Average Temperature 120 | . . 6 17 35 71 . . 155 131 . . 138 72 15 154 Received Heat Transfer 2134 | . . 183 171 . . . 81 267 198 . . 825 . 85 324 Effects 4 | . . . . . . . . 2 1 . . 1 . . . Shutdowns 1 | . . . . . . . . . . . . 1 . . . Energy Bleed 3 | . . . . . . . . 2 1 . . . . . . Siege Activations . | . . . . . . . . . . . . . . . . Robots Corrupted . | . . . . . . . . . . . . . . . . Combat Hostiles . | . . . . . . . . . . . . . . . . Parts Fried 18 | . . 4 2 . . . . 3 4 . . . 5 . . Impact Corruptions 16 | . . 5 3 . . . . 1 5 . . 2 . . . Robots Melted . | . . . . . . . . . . . . . . . . Combat Hostiles . | . . . . . . . . . . . . . . . . Parts Melted 1 | . . . 1 . . . . . . . . . . . . Heat Transferred 2142 | . 125 . 333 333 . . . 444 300 . . 224 333 . 50 Parts Sabotaged . | . . . . . . . . . . . . . . . . Parts Stolen . | . . . . . . . . . . . . . . . . Parts Stripped . | . . . . . . . . . . . . . . . . Power Chain Reactions . | . . . . . . . . . . . . . . . . Missiles Intercepted . | . . . . . . . . . . . . . . . . Alert | -11 -10 -9 -8 -7 -7 -7 -7 -6 -5 -5 -5 -4 -4 -4 -4 ------- Run | Scr Mat Mat Mat Fac Was Fac DSF Fac Fac Upp Upp Fac Upp Upp War Peak Influence 809 | . 131 397 506 316 78 60 108 171 256 . . 809 . . . Initial 229 | . . 55 85 229 51 46 42 14 . . . . . . . Average 189 | . 89 207 276 256 58 54 56 56 78 . . 420 . . . Maximum Alert Level 3 | . . 1 2 1 . . . . 1 . . 3 . . . Low Security (%) 63 | 100 100 48 28 15 100 100 100 100 86 . . 30 . . . Level 1 21 | . . 51 43 84 . . . . 13 . . 7 . . . Level 2 10 | . . . 27 . . . . . . . . 45 . . . Level 3 3 | . . . . . . . . . . . . 17 . . . Level 4 . | . . . . . . . . . . . . . . . . Level 5 . | . . . . . . . . . . . . . . . . High Security . | . . . . . . . . . . . . . . . . Max Security . | . . . . . . . . . . . . . . . . Squads Dispatched 21 | . . 1 1 2 . . 2 3 4 . . 8 . . . Investigation 3 | . . . . . . . . 1 2 . . . . . . Extermination 4 | . . . . 1 . . . 1 1 . . 1 . . . Reinforcement 10 | . . 1 1 1 . . 2 1 1 . . 3 . . . Assault 1 | . . . . . . . . . . . . 1 . . . Garrison 3 | . . . . . . . . . . . . 3 . . . Intercept . | . . . . . . . . . . . . . . . . Searches Triggered . | . . . . . . . . . . . . . . . . Construction Impeded 1 | . . . . . . . . . . . . 1 . . . Haulers Reinforced 2 | . . . . 1 . . . . 1 . . . . . . Active Scanning Responses . | . . . . . . . . . . . . . . . . Cargo Convoy Interrupts . | . . . . . . . . . . . . . . . . Stealth | -11 -10 -9 -8 -7 -7 -7 -7 -6 -5 -5 -5 -4 -4 -4 -4 --------- Run | Scr Mat Mat Mat Fac Was Fac DSF Fac Fac Upp Upp Fac Upp Upp War Distress Signals 9 | . 2 4 3 . . . . . . . . . . . . Communications Jammed . | . . . . . . . . . . . . . . . . Distress Signals . | . . . . . . . . . . . . . . . . Times Spotted 157 | . 6 17 17 4 6 . 5 9 10 . . 41 14 8 20 Peak Tracking Total 12 | . 4 5 7 3 2 . 2 3 4 . . 12 7 4 10 Tactical Retreats 18 | . 1 3 1 . . . . 2 . . . 4 3 1 3 Traps | -11 -10 -9 -8 -7 -7 -7 -7 -6 -5 -5 -5 -4 -4 -4 -4 ------- Run | Scr Mat Mat Mat Fac Was Fac DSF Fac Fac Upp Upp Fac Upp Upp War Traps Triggered 5 | . 1 . . 1 . . 2 . 1 . . . . . . Indirectly . | . . . . . . . . . . . . . . . . Trap Hack Attempts . | . . . . . . . . . . . . . . . . Triggered . | . . . . . . . . . . . . . . . . Disarmed . | . . . . . . . . . . . . . . . . Reprogrammed . | . . . . . . . . . . . . . . . . Reused . | . . . . . . . . . . . . . . . . Traps Extracted . | . . . . . . . . . . . . . . . . Installed . | . . . . . . . . . . . . . . . . Triggered 19 | . . . . . . . . . . 1 . . 1 . 17 Machines | -11 -10 -9 -8 -7 -7 -7 -7 -6 -5 -5 -5 -4 -4 -4 -4 ---------- Run | Scr Mat Mat Mat Fac Was Fac DSF Fac Fac Upp Upp Fac Upp Upp War Machines Disabled 26 | . . . 1 . . . . . 1 . . 24 . . . Max in Single Turn 5 | . . . 1 . . . . . 1 . . 5 . . . Garrison Access 1 | . . . . 1 . . . . . . . . . . . Machines Sabotaged . | . . . . . . . . . . . . . . . . Garrisons Compromised . | . . . . . . . . . . . . . . . . Overloaded Fab Kills . | . . . . . . . . . . . . . . . . Hacking | -11 -10 -9 -8 -7 -7 -7 -7 -6 -5 -5 -5 -4 -4 -4 -4 --------- Run | Scr Mat Mat Mat Fac Was Fac DSF Fac Fac Upp Upp Fac Upp Upp War Machines Accessed 27 | . 2 1 1 4 . 2 . 6 2 . 1 3 . . 5 Terminals 17 | . 1 1 1 2 . 2 . 5 2 . 1 2 . . . Fabricators 2 | . . . . 1 . . . . . . . 1 . . . Repair Stations . | . . . . . . . . . . . . . . . . Recycling Units 1 | . 1 . . . . . . . . . . . . . . Scanalyzers . | . . . . . . . . . . . . . . . . Garrison Access 2 | . . . . 1 . . . 1 . . . . . . . Total Hacks 66 | . 4 5 4 7 . 5 . 11 5 . 2 8 . . 15 Successful 37 | . 3 2 1 3 . 3 . 1 4 . 2 3 . . 15 Failed 29 | . 1 3 3 4 . 2 . 10 1 . . 5 . . . Catastrophic 3 | . . . . . . . . 3 . . . . . . . Database Lockouts . | . . . . . . . . . . . . . . . . Manual 10 | . 2 2 . . . . . 4 1 . . 1 . . . Terminals 42 | . 2 5 4 5 . 5 . 9 5 . 2 5 . . . Fabricators 4 | . . . . 1 . . . . . . . 3 . . . Repair Stations . | . . . . . . . . . . . . . . . . Recycling Units 2 | . 2 . . . . . . . . . . . . . . Scanalyzers . | . . . . . . . . . . . . . . . . Garrison Access 3 | . . . . 1 . . . 2 . . . . . . . Terminal Hacks 30 | . . 1 1 1 . 3 . 1 4 . 2 2 . . 15 Record 19 | . . . . . . . . . 2 . 2 1 . . 14 Prototype ID Bank 2 | . . 1 . . . . . . 1 . . . . . . Open Door 1 | . . . . . . . . . . . . . . . 1 Open DSF 4 | . . . . 1 . 1 . 1 . . . 1 . . . Alert Level 2 | . . . . . . 1 . . 1 . . . . . . Zone Layout 2 | . . . 1 . . 1 . . . . . . . . . Fabricator Hacks 2 | . . . . 1 . . . . . . . 1 . . . Network Status 2 | . . . . 1 . . . . . . . 1 . . . Repair Station Hacks . | . . . . . . . . . . . . . . . . Recycling Unit Hacks 2 | . 2 . . . . . . . . . . . . . . Report Inventory 1 | . 1 . . . . . . . . . . . . . . Retrieve Components 1 | . 1 . . . . . . . . . . . . . . Scanalyzer . | . . . . . . . . . . . . . . . . Garrison Access Hacks 1 | . . . . 1 . . . . . . . . . . . Seal Access 1 | . . . . 1 . . . . . . . . . . . Unauthorized Hacks 2 | . 1 1 . . . . . . . . . . . . . Terminals 2 | . 1 1 . . . . . . . . . . . . . Operators 2 | . 1 1 . . . . . . . . . . . . . Fabricators . | . . . . . . . . . . . . . . . . Repair Stations . | . . . . . . . . . . . . . . . . Recycling Units . | . . . . . . . . . . . . . . . . Scanalyzers . | . . . . . . . . . . . . . . . . Garrison Access . | . . . . . . . . . . . . . . . . Data Cores Recovered . | . . . . . . . . . . . . . . . . Used . | . . . . . . . . . . . . . . . . Hacking Detections 15 | . 1 1 1 2 . 1 . 5 2 . . 2 . . . Full Trace Events 2 | . . . . . . . . 1 1 . . . . . . Feedback Events . | . . . . . . . . . . . . . . . . Feedback Blocked . | . . . . . . . . . . . . . . . . Robot Schematics Acquired . | . . . . . . . . . . . . . . . . Robots Built . | . . . . . . . . . . . . . . . . Authchips . | . . . . . . . . . . . . . . . . Time . | . . . . . . . . . . . . . . . . Total Robot Build Rating . | . . . . . . . . . . . . . . . . Part Schematics Acquired . | . . . . . . . . . . . . . . . . Parts Built . | . . . . . . . . . . . . . . . . Authchips . | . . . . . . . . . . . . . . . . Time . | . . . . . . . . . . . . . . . . Total Part Build Rating . | . . . . . . . . . . . . . . . . Parts Repaired . | . . . . . . . . . . . . . . . . Time . | . . . . . . . . . . . . . . . . Parts Recycled . | . . . . . . . . . . . . . . . . Recycled Matter . | . . . . . . . . . . . . . . . . Retrieved Matter . | . . . . . . . . . . . . . . . . Retrieved Components 3 | . 3 . . . . . . . . . . . . . . Parts Scanalyzed . | . . . . . . . . . . . . . . . . Part Schematics Acquired . | . . . . . . . . . . . . . . . . Parts Damaged . | . . . . . . . . . . . . . . . . Bothacking | -11 -10 -9 -8 -7 -7 -7 -7 -6 -5 -5 -5 -4 -4 -4 -4 ------------ Run | Scr Mat Mat Mat Fac Was Fac DSF Fac Fac Upp Upp Fac Upp Upp War Used RIF Installer . | . . . . . . . . . . . . . . . . Robots Hacked 1 | . . . . . . . . . 1 . . . . . . Non-combat 1 | . . . . . . . . . 1 . . . . . . Combat . | . . . . . . . . . . . . . . . . Robot Hacks Applied 2 | . . . . . . . . . 2 . . . . . . parse_system 1 | . . . . . . . . . 1 . . . . . . no_distress 1 | . . . . . . . . . 1 . . . . . . Relay Couplers Released . | . . . . . . . . . . . . . . . . Fabnet Peak Effective % . | . . . . . . . . . . . . . . . . Robots Rewired 1 | . . . . 1 . . . . . . . . . . . Allies Hacked . | . . . . . . . . . . . . . . . . Hacks Repelled . | . . . . . . . . . . . . . . . . Allies | -11 -10 -9 -8 -7 -7 -7 -7 -6 -5 -5 -5 -4 -4 -4 -4 -------- Run | Scr Mat Mat Mat Fac Was Fac DSF Fac Fac Upp Upp Fac Upp Upp War Total Allies 20 | . . . . 1 19 . . . . . . . . . . Largest Group 20 | . . . . 1 20 15 7 . . . . . . . . Highest-Rated Group 485 | . . . . 20 485 405 184 . . . . . . . . Highest-Rated Ally 35 | . . . . 20 35 35 35 . . . . . . . . Total Orders . | . . . . . . . . . . . . . . . . Ally Attacks 170 | . . . . . 121 . 49 . . . . . . . . Total Damage 3443 | . . . . . 2866 . 577 . . . . . . . . Kills 10 | . . . . . 6 . 4 . . . . . . . . Allies Corrupted . | . . . . . . . . . . . . . . . . Allies Melted 1 | . . . . . . . . . . . . . . . 1 Intel | -11 -10 -9 -8 -7 -7 -7 -7 -6 -5 -5 -5 -4 -4 -4 -4 ------- Run | Scr Mat Mat Mat Fac Was Fac DSF Fac Fac Upp Upp Fac Upp Upp War Robot Analysis Total . | . . . . . . . . . . . . . . . . Derelict Logs Recovered 4 | . . . . . . . . . . 2 . . 1 1 . Drone Launches . | . . . . . . . . . . . . . . . . Drone Recoveries . | . . . . . . . . . . . . . . . . Exploration | -11 -10 -9 -8 -7 -7 -7 -7 -6 -5 -5 -5 -4 -4 -4 -4 ------------- Run | Scr Mat Mat Mat Fac Was Fac DSF Fac Fac Upp Upp Fac Upp Upp War Turns Passed 6361 | 51 130 442 222 476 255 42 177 802 525 594 262 824 427 250 882 Spaces Moved 5153 | 43 86 274 127 403 192 37 119 468 269 408 179 489 369 663 1027 Core 873 | 3 . 3 . . . . . . . . . 76 5 52 734 Treads 223 | . . . . . . . . . . . . . 154 . 69 Legs 248 | . . . . 24 . . . . . . . . . . 224 Wheels 3012 | 40 86 271 127 379 192 37 119 468 269 408 179 413 24 . . Hover . | . . . . . . . . . . . . . . . . Flight 797 | . . . . . . . . . . . . . 186 611 . Fastest Speed 32 | 50 100 90 90 100 100 115 115 145 130 145 145 50 32 35 50 Average Speed 102 | 96 100 99 108 102 110 115 129 145 146 145 145 123 92 36 78 Slowest Speed 460 | 100 100 200 115 190 115 115 145 145 160 145 145 160 250 50 460 Overloaded Moves . | . . . . . . . . . . . . . . . . Propulsion Burnouts . | . . . . . . . . . . . . . . . . Robots Hopped . | . . . . . . . . . . . . . . . . Cave-ins Triggered . | . . . . . . . . . . . . . . . . Exploration Rate (%) 38 | 3 26 20 19 8 92 1 89 15 9 60 29 13 61 89 87 Regions Visited 15 Branch Regions 5 Pre-discovered Areas 1 | . . . . . . . . . . 1 . . . . . Known Exits Taken 3 | . . . . . . 1 . . . . . . 1 1 . Unknown Exits Taken 9 | 1 1 1 1 . . . . 1 1 1 1 1 . . . Scrap Searched 4 | . . . . . . . . . . . 1 . 1 2 . Spaces Dug 9 | . . . 5 2 . . . 2 . . . . . . . Terrain Destroyed 208 | . . . 54 2 1 . . 4 5 . . 130 . . 12 Melee 9 | . . . 5 2 . . . 2 . . . . . . . Projectile 67 | . . . . . 1 . . 2 5 . . 47 . . 12 AOE 132 | . . . 49 . . . . . . . . 83 . . . Terrain Rammed . | . . . . . . . . . . . . . . . . Walls Destroyed . | . . . . . . . . . . . . . . . . Machines Disabled . | . . . . . . . . . . . . . . . . Actions | -11 -10 -9 -8 -7 -7 -7 -7 -6 -5 -5 -5 -4 -4 -4 -4 --------- Run | Scr Mat Mat Mat Fac Was Fac DSF Fac Fac Upp Upp Fac Upp Upp War Total 5750 | 49 106 366 163 443 222 36 139 522 342 410 182 595 420 673 1082 Wait 35 | . 5 7 . . . . . 9 12 . . 1 . . 1 Move 5139 | 42 85 273 126 403 191 36 118 467 268 407 178 488 368 662 1027 Hop . | . . . . . . . . . . . . . . . . Pick Up 53 | 1 . 13 . 12 4 . . 6 6 1 1 4 2 2 1 Fast Attach 84 | 6 2 12 1 4 5 . 3 3 3 . 1 10 11 3 20 Attach 42 | . . 3 4 1 . . . 1 5 . . 12 9 2 5 Detach 27 | . . . . . 2 . . 2 . . . 11 6 2 4 Swap 35 | . . 5 7 5 1 . 1 2 11 1 . 2 . . . Drop 73 | . 1 14 . 5 12 . 7 2 6 1 2 13 . 2 8 Fire 196 | . 13 29 15 9 7 . 2 23 20 . . 38 24 . 16 Melee 55 | . . 10 10 2 . . . 7 11 . . 15 . . . Ram 1 | . . . . . . . . . . . . 1 . . . Kick . | . . . . . . . . . . . . . . . . Crush . | . . . . . . . . . . . . . . . . Escape Stasis 8 | . . . . . . . 8 . . . . . . . . Rewire 2 | . . . . 2 . . . . . . . . . . . Trap . | . . . . . . . . . . . . . . . . Miscellaneous . | . . . . . . . . . . . . . . . . Route ------- -11/Scrapyard -10/Materials -9/Materials -8/Materials -7/Factory -7/Waste -7/Factory -7/DSF -6/Factory -5/Factory -5/Upper Caves -5/Upper Caves -4/Factory -4/Upper Caves -4/Upper Caves (discovered 2 exits: *Res / *War) -4/Warlord History --------- Turn | Location | Event 13 | -11/Scrapyard | Discovered new exit (range 15) 52 | -11/Scrapyard | Entered Materials 143 | -10/Materials | Discovered new exit (range 7) 182 | -10/Materials | Entered another Materials area 182 | -9/Materials | Evolved 2 slots: Utility x2 307 | -9/Materials | Build established: Mutant 596 | -9/Materials | Discovered new exit (range 14) 624 | -9/Materials | Entered another Materials area 624 | -8/Materials | Evolved 2 slots: Propulsion x1, Utility x1 841 | -8/Materials | Discovered new exit (range 4) 846 | -8/Materials | Entered Factory 846 | -7/Factory | Evolved 2 slots: Propulsion x1, Weapon x1 1257 | -7/Factory | Build established: Gunner 1322 | -7/Factory | Sucked down chute 1322 | -7/Factory | Entered Waste 1325 | -7/Waste | 1 allies followed down the chute 1337 | -7/Waste | Warlord forces began an assault 1422 | -7/Waste | Spotted C-40 Crusher 1422 | -7/Waste | Spotted C-40 Crusher 1427 | -7/Waste | Allies destroyed C-40 Crusher 1427 | -7/Waste | Allies destroyed C-40 Crusher 1441 | -7/Waste | Found Damper Plating 1458 | -7/Waste | Spotted C-40 Crusher 1462 | -7/Waste | Allies destroyed C-40 Crusher 1478 | -7/Waste | Spotted C-40 Crusher 1488 | -7/Waste | Destroyed C-40 Crusher 1488 | -7/Waste | Spotted C-40 Crusher 1497 | -7/Waste | Allies destroyed C-40 Crusher 1513 | -7/Waste | Spotted C-40 Crusher 1519 | -7/Waste | Destroyed C-40 Crusher 1551 | -7/Waste | Discovered new exit (range 12) 1577 | -7/Waste | Entered Factory 1577 | -7/Factory | Accompanied by 15 allies 1618 | -7/Factory | Identified exit to DSF 1619 | -7/Factory | Entered DSF 1619 | -7/DSF | Accompanied by 7 allies 1643 | -7/DSF | Additional patrols routed to DSF 1729 | -7/DSF | Build established: Tank 1775 | -7/DSF | Discovered new exit (range 16) 1796 | -7/DSF | Entered Factory 1796 | -6/Factory | Evolved 2 slots: Utility x1, Weapon x1 2091 | -6/Factory | Build established: Derelict-Tank 2337 | -6/Factory | Spotted B-75 Beast 2552 | -6/Factory | Discovered new exit (range 16) 2598 | -6/Factory | Entered another Factory area 2598 | -5/Factory | Evolved 2 slots: Power x1, Utility x1 3103 | -5/Factory | Discovered new exit (range 15) 3123 | -5/Factory | Entered Upper Caves 3447 | -5/Upper Caves | Build established: Tank 3496 | -5/Upper Caves | Learned location of Warlord (-4) 3618 | -5/Upper Caves | Learned Factory emergency access door positions 3701 | -5/Upper Caves | Discovered new exit (range 12) 3717 | -5/Upper Caves | Entered another Upper Caves area 3965 | -5/Upper Caves | Discovered new exit (range 8) 3979 | -5/Upper Caves | Entered Factory 3979 | -4/Factory | Evolved 2 slots: Utility x2 4043 | -4/Factory | Identified exit to DSF 4271 | -4/Factory | Garrison activated, responded to threat 4479 | -4/Factory | First assault squad dispatched 4793 | -4/Factory | Lost 13 parts (2p2n4u5w) 4795 | -4/Factory | Discovered new exit (range 15) 4803 | -4/Factory | Entered Upper Caves 4854 | -4/Upper Caves | Encountered a Warlord checkpoint 4956 | -4/Upper Caves | Learned 4 Research zone layouts 5145 | -4/Upper Caves | Core integrity fell below 50% 5180 | -4/Upper Caves | Lost 8 parts (3p4n1w) 5227 | -4/Upper Caves | Discovered new exit (range 9) 5230 | -4/Upper Caves | Identified exit to Upper Caves 5230 | -4/Upper Caves | Entered another Upper Caves area 5230 | -4/Upper Caves | Discovered new exit (range 8) 5233 | -4/Upper Caves | Identified exit to Research 5356 | -4/Upper Caves | Encountered a Warlord checkpoint 5419 | -4/Upper Caves | Learned Research emergency access door positions 5446 | -4/Upper Caves | Spotted B-86 Titan 5463 | -4/Upper Caves | Core integrity fell below 20% 5473 | -4/Upper Caves | Discovered new exit (range 8) 5480 | -4/Upper Caves | Identified exit to Warlord 5480 | -4/Upper Caves | Entered Warlord 5489 | -4/Warlord | Lost 3 parts (1n2w) 5505 | -4/Warlord | System corruption cleaned by Quarantine Array 5679 | -4/Warlord | Met Warlord 5686 | -4/Warlord | Warlord's base attacked by MAIN.C 5734 | -4/Warlord | Found Prototype Special Weapon 5734 | -4/Warlord | Identified RU-N14's Throwing Claymores v3 5758 | -4/Warlord | Build established: Mutant 6013 | -4/Warlord | Found Prototype Piercing Weapon 6013 | -4/Warlord | Identified Vortex Lance 6016 | -4/Warlord | Found Vortex Lance 6036 | -4/Warlord | Warlord forces counterattacked 6151 | -4/Warlord | Found Prototype Ballistic Cannon 6151 | -4/Warlord | Identified Hvy. Autocannon 6233 | -4/Warlord | Spotted Executioner 6257 | -4/Warlord | Destroyed Executioner 6348 | -4/Warlord | Spotted Executioner 6361 | -4/Warlord | Warlord base infiltrated, sounded retreat 6362 | -4/Warlord | Destroyed by Executioner with Helical Railgun Last Messages --------------- 06284_ Dropped Enh. Biometal Leg. 06284_ Acquired Arm. Medium Treads. 06286_ ANNOUNCEMENT: Detected 3 Grunt squads, 1 Mixed squad, with prototype support. 06287_ Acquired 59 matter. 06290_ Acquired 49 matter. 06297_ Acquired 25 matter. 06309_ X-77 Beamer knocked back. 06320_ Penetrated by Slug. 06322_ Acquired 10 matter. 06323_ Acquired 69 matter. 06333_ Lgt. Nuclear Core destroyed. 06342_ S-27 Virus destroyed. 06347_ G-67 Veteran knocked back. 06358_ Destroyed Adv. Particle Charger. 06358_ X-77 Beamer knocked back. 06359_ Penetrated by Slug. 06360_ X-77 Beamer knocked back. 06361_ ANNOUNCEMENT: Base interior infiltrated, regroup at designated outer cave rendezvous points. Map ----- +----------------------------------------------------+ | ?????# #??# #??????????????????? | | ?######+############# #??# ##??????????????????? | | ?# #????## #### #???????????????????? | | ?# """"" #????# #??????""???????????? | | ?# """"" #????## [=[#??????""#??????????? | | ?# """"" #?????# =%/%####??#""#??????????? | | ?# #?????# !%=%=## #??#""#?????###??# | | ?##############?????# ###"%/%"#"####""###### ## # | | ##################??# # =**[* " %[""%%[ # " | | ## [ # #??# " =%=[%[%%%""%!%[ % | | "" #"" "" #### # % !*%=%*]*""%%%*[%=% | | "" # # * ==!%=%[!%%!%=*] = | | """ #" + % !%%%%%!!%*%=[%%% = % | | """ ##"""" # [! %[%!%%%=%!%![[=%%*! | | "" ###""# # =% !!%![=!*%!%[%%== | | "" #?######## "% =%=%%!% ""%!%! %!! | | #????????# #*!!* % ==[%!""%=*% | | #########????????# #!!%!*% # !=""! """"""## | | # #????????# ####%/[#####"#""##### #####? | | # #######??# [b;#??###""#?????#????? | | + # #### =% #?????#""#??????????? | | # # "" " ##?????""#??????????? | | # + ###### g""""g g##????""???????????? | | # # #????# """"gE ;#?????????????????? | | # # #????# "" g ##?????????????????? | | # ## ####### @ x #??????????????????? | | # ## # # #??????????????????? | | # ## # # ;#?????????????????? | | # ## # # ####;# ####??????????????? | | #+###+#### # ; ## #??????????????? | | # g # ## ??????????????? | | + # # #?????????????? | | # # # #???????????? | | ###### # # ##??????????# | | #????# # #???????????### | | #????####### # ?????????????? | | #?????????## ###????????????? | | #????###### ## ??????????????? | | +########????# # ????????????????? | | ####### #????????????????? | | "" + #????????????????? | | "" ############ ### ### #????????????????? | | """ #????????#####+######??# ######???????????? | | """ #????????# #???# # #???????????? | | "" #????????# #???# + #???????????? | | "" #????????# ##### # #???????????? | | #????????# + # #???????????? | | #????????# ### ########???????????? | | ########????????# #?###??????????????????? | | ????????????????# #??????????????????????? | +----------------------------------------------------+ Best States ------------- Heat Dissipation 95 Energy Generation 32 Energy Capacity 710 Matter Stores 720 Matter Capacity 1050 Sight Range 18 Terrain Scan Density 135 ECM Strength 1 Base Temperature (-) 200 Armor Coverage 1825 Resistance: KI 30 Resistance: EM 90 Core Shielding 20 Utility Shielding 90 Point Defense Rating 80 Evasion (%) 63 Targeting Accuracy 24 Melee Accuracy 8 Recoil Reduction 4 Item Schematics ----------------- None Robot Schematics ------------------ None Fabricated ------------ Nothing Alien Tech Used ----------------- None Achievements -------------- A Powerful Ally? We Are Legion Challenges ------------ None Game ------ Seed InsulatedDefenseSpear Manual? 0 Play Time 01:54:50 Cumulative 45.2 hours Start 2022.10.07 @ 02:50:50 End 2022.10.08 @ 21:59:04 Sessions 7 Manual Loads 0 Difficulty Rogue Special Mode None Game No. 30 Rogue 30 Adventurer 0 Explorer 0 Win Type - Total 0 Types 0/0/0/0/0/0/0/0/0 Lore% 35 Gallery% 48 Achievement% 35 Wizard Run 0 Options --------- ASCII 0 Keyboard 0 Movement Mouse Keybinds 0 Fullscreen 1 Font 18/SmallcapsGlow Map View 76x50 Tactical HUD 1 Map Filters NONE Filters NONE Steam 1 RUN: 2d4e0da5-b100-4ed9-9e70-8385d6da37ba